bitfinex-derivatives/quotes_SOLF0:USTF0_20250808
["timestamp","ask_amount","ask_price","bid_price","bid_amount"]
[1754667092897,3.21,175.48,175.45,109.31]
[1754667093094,3.21,175.47,175.45,109.31]
[1754667093691,2.92880362,175.48,175.45,106.26]
[1754667093902,3.21,175.46,175.45,106.26]
[1754667094809,3.21,175.46,175.41,3.05]
[1754667095109,3.21,175.46,175.42,106.26]
[1754667095298,9.87391204,175.46,175.34,235.0]
[1754667095499,6.13880362,175.45,175.38,3.05]
[1754667095699,2.92880362,175.45,175.39,106.26]
[1754667095899,3.21,175.44,175.39,106.26]
[1754667096511,9.90391204,175.44,175.39,106.26]
[1754667096703,3.24,175.42,175.39,106.26]
[1754667097012,8.62850362,175.43,175.39,106.26]
[1754667097204,3.24,175.41,175.39,109.36]
[1754667097405,2.92880362,175.44,175.39,106.26]
[1754667097607,3.24,175.46,175.43,3.1]
[1754667097802,3.24,175.46,175.44,3.1]
[1754667098009,3.24,175.46,175.43,106.28]
[1754667098010,2.92880362,175.49,175.45,3.1]
[1754667098298,3.24,175.46,175.45,3.1]
[1754667099198,2.92880362,175.48,175.45,3.1]
[1754667099397,3.24,175.47,175.44,3.1]
[1754667099608,3.24,175.48,175.43,106.28]
[1754667099904,5.6982,175.47,175.43,106.28]
[1754667100110,3.24,175.44,175.43,106.28]
[1754667100311,8.9392,175.44,175.43,106.28]
[1754667100503,6.16880362,175.44,175.41,235.0]
[1754667100900,8.9398,175.43,175.41,235.0]
[1754667101104,6.16880362,175.42,175.41,235.0]
[1754667101299,3.24,175.41,175.38,8.801]
[1754667101499,3.24,175.43,175.39,115.0808]
[1754667101704,3.24,175.42,175.4,3.1]
[1754667102502,2.92880362,175.43,175.41,3.1]
[1754667102711,3.24,175.44,175.42,3.1]
[1754667102905,2.92880362,175.45,175.4,3.1]
[1754667103106,3.24,175.42,175.4,3.1]
[1754667103600,3.24,175.42,175.4,8.8004]
[1754667103804,6.16880362,175.44,175.4,3.1]
[1754667104205,2.92880362,175.44,175.39,106.28]
[1754667104411,3.24,175.4,175.39,106.28]
[1754667104606,2.92880362,175.44,175.41,5.6999]
[1754667104810,6.16880362,175.45,175.43,3.1]
[1754667105115,2.92880362,175.48,175.42,106.3]
[1754667105408,3.24,175.47,175.42,109.4]
[1754667105814,3.24,175.47,175.43,3.1]
[1754667106009,3.24,175.46,175.42,106.3]
[1754667106205,3.24,175.46,175.44,3.1]
[1754667106601,3.24,175.49,175.42,109.4]
[1754667106804,3.24,175.49,175.42,106.3]
[1754667106805,9.90391204,175.49,175.42,106.3]
[1754667107007,3.24,175.47,175.42,106.3]
[1754667107308,3.24,175.47,175.44,3.1]
[1754667107609,3.24,175.46,175.44,3.1]
[1754667107815,3.24,175.45,175.42,106.3]
[1754667108116,5.6986,175.46,175.42,106.3]
[1754667108508,5.6986,175.46,175.42,109.4]
[1754667108717,3.24,175.43,175.42,106.3]
[1754667109309,3.24,175.43,175.4,3.1]
[1754667109511,3.24,175.43,175.41,106.3]
[1754667109707,2.91647657,175.46,175.41,106.3]
[1754667109904,3.24,175.42,175.41,106.3]
[1754667111215,3.24,175.42,175.37,6.66391204]
[1754667111414,3.24,175.42,175.36,3.1]
[1754667111608,3.24,175.38,175.37,106.3]
[1754667112208,8.9411,175.38,175.37,106.3]
[1754667112416,3.24,175.38,175.37,106.3]
[1754667112916,2.91292149,175.4,175.38,3.1]
[1754667112917,3.24,175.39,175.38,3.1]
[1754667113120,3.24,175.39,175.37,106.3]
[1754667113319,3.24,175.39,175.37,109.4]
[1754667113523,2.91292149,175.42,175.37,109.4]
[1754667113709,3.24,175.38,175.37,106.3]
[1754667115417,6.15292149,175.42,175.39,3.1]
[1754667115716,3.24,175.41,175.38,3.1]
[1754667116022,3.24,175.4,175.39,3.1]
[1754667116514,3.24,175.4,175.38,3.1]
[1754667117221,3.24,175.39,175.38,3.1]
[1754667117813,3.24,175.4,175.38,3.1]
[1754667118421,3.24,175.39,175.38,3.1]
[1754667118623,3.24,175.38,175.37,106.3]
[1754667120219,3.24,175.42,175.37,106.3]
[1754667120422,3.24,175.42,175.38,3.1]
[1754667120622,3.24,175.41,175.39,3.1]
[1754667120924,3.24,175.38,175.37,109.4]
[1754667121321,3.24,175.43,175.38,5.701]
[1754667121522,6.15292149,175.43,175.39,3.1]
[1754667121717,3.24,175.42,175.38,3.1]
[1754667122527,3.24,175.41,175.37,112.0012]
[1754667122928,3.24,175.41,175.37,115.1012]
[1754667123326,2.91292149,175.42,175.37,106.3]
[1754667123633,3.24,175.41,175.38,3.1]
[1754667123930,3.24,175.45,175.38,3.1]
[1754667124130,6.15292149,175.45,175.38,3.1]
[1754667124330,3.24,175.44,175.38,3.1]
[1754667124529,3.24,175.43,175.38,3.1]
[1754667125028,2.91292149,175.44,175.37,106.3]
[1754667125331,3.24,175.42,175.37,106.3]
[1754667125528,6.66391204,175.43,175.37,106.3]
[1754667125727,6.15292149,175.42,175.37,106.3]
[1754667125930,3.24,175.4,175.37,106.3]
[1754667126127,5.7008,175.39,175.37,106.3]
[1754667126425,3.3,175.38,175.34,3.1]
[1754667126626,3.3,175.38,175.35,106.32]
[1754667126833,9.0011,175.38,175.35,106.32]
[1754667127032,3.3,175.36,175.35,106.32]
[1754667127234,3.3,175.36,175.29,3.1]
[1754667127429,3.3,175.36,175.31,106.32]
[1754667127732,6.21292149,175.36,175.31,106.32]
[1754667127935,3.3,175.35,175.31,106.32]
[1754667128129,3.3,175.35,175.31,109.42]
[1754667128529,3.3,175.35,175.32,3.1]
[1754667128738,9.0023,175.35,175.31,106.32]
[1754667128934,2.91292149,175.34,175.31,109.42]
[1754667129129,3.3,175.34,175.31,109.42]
[1754667129429,3.3,175.35,175.31,109.42]
[1754667129630,5.7031,175.32,175.31,106.32]
[1754667129837,3.3,175.33,175.28,106.34]
[1754667130140,2.91292149,175.33,175.29,3.1]
[1754667130335,3.3,175.35,175.3,3.1]
[1754667130638,3.3,175.35,175.29,9.76391204]
[1754667131030,3.3,175.35,175.31,5.7032]
[1754667131233,3.3,175.34,175.31,8.8032]
[1754667131533,3.3,175.32,175.31,8.8032]
[1754667131730,3.3,175.33,175.32,8.8031]
[1754667132039,3.3,175.33,175.32,3.1]
[1754667132240,2.91292149,175.34,175.29,6.66391204]
[1754667132434,2.91292149,175.34,175.33,8.8027]
[1754667132635,2.91292149,175.37,175.34,3.1]
[1754667132833,2.91292149,175.39,175.37,5.7011]
[1754667133032,2.91292149,175.4,175.39,3.1]
[1754667133233,2.91292149,175.41,175.37,113.12391204]
[1754667133445,2.92224217,175.42,175.39,6.66391204]
[1754667133840,3.3,175.45,175.41,6.66391204]
[1754667133841,2.92224217,175.44,175.41,6.66391204]
[1754667134037,2.92224217,175.44,175.43,5.6995]
[1754667134337,3.3,175.5,175.44,0.18]
[1754667134540,3.3,175.5,175.47,6.66391204]
[1754667134735,3.3,175.49,175.47,6.66391204]
[1754667134942,3.3,175.48,175.46,5.6984]
[1754667135236,10.37943393,175.51,175.46,5.6984]
[1754667135444,26.65564816,175.78,175.43,6.66391204]
[1754667135445,7.98253393,175.49,175.43,6.66391204]
[1754667135738,3.3,175.48,175.44,106.56]
[1754667135939,3.3,175.48,175.4,0.18]
[1754667135940,3.3,175.46,175.41,106.6]
[1754667136139,7.98253393,175.46,175.41,106.6]
[1754667136342,3.3,175.45,175.41,106.6]
[1754667136533,10.38123393,175.46,175.41,106.6]
[1754667136931,3.3,175.42,175.41,106.6]
[1754667139448,3.3,175.42,175.38,489.78]
[1754667140043,4.68253393,175.41,175.38,106.54]
[1754667140243,3.3,175.4,175.38,106.54]
[1754667140746,3.3,175.39,175.38,106.54]
[1754667141640,3.3,175.39,175.38,102.26262445]
[1754667141952,7.98253393,175.39,175.38,102.26262445]
[1754667142245,9.44651826,175.44,175.38,102.26262445]
[1754667142246,4.68253393,175.41,175.38,102.26262445]
[1754667142443,4.68253393,175.41,175.38,102.44262445]
[1754667142642,7.98253393,175.42,175.39,0.18]
[1754667142841,7.98253393,175.42,175.39,5.8806]
[1754667143048,3.3,175.42,175.39,5.8806]
[1754667143236,3.3,175.42,175.39,0.18]
[1754667143441,3.3,175.41,175.39,0.18]
[1754667143841,4.68253393,175.42,175.39,0.18]
[1754667143842,3.3,175.42,175.39,0.18]
[1754667144042,3.3,175.42,175.39,5.8806]
[1754667144243,4.68253393,175.42,175.39,0.18]
[1754667144446,3.3,175.4,175.38,108.92653649]
[1754667144639,4.68253393,175.41,175.38,102.26262445]
[1754667144847,3.3,175.39,175.38,102.26262445]
[1754667145748,7.98253393,175.41,175.38,102.44262445]
[1754667145946,7.98253393,175.41,175.38,102.26262445]
[1754667146142,3.3,175.41,175.38,102.26262445]
[1754667146346,3.3,175.4,175.38,102.26262445]
[1754667146541,6.15590852,175.4,175.38,102.26262445]
[1754667146751,3.3,175.39,175.38,102.26262445]
[1754667146946,10.83844245,175.39,175.38,102.26262445]
[1754667147144,13.68333393,175.39,175.38,102.26262445]
[1754667147344,10.83844245,175.39,175.38,102.26262445]
[1754667148343,13.23944245,175.39,175.34,112.1822]
[1754667148547,2.85590852,175.38,175.34,106.48]
[1754667148746,3.3,175.37,175.32,0.18]
[1754667148953,3.3,175.37,175.33,112.2026]
[1754667149250,3.3,175.35,175.33,112.2026]
[1754667149441,3.3,175.34,175.33,106.5]
[1754667149950,6.15623749,175.36,175.33,106.68]
[1754667150148,10.83877142,175.36,175.33,106.68]
[1754667150347,2.85623749,175.35,175.33,112.3825]
[1754667150548,7.98253393,175.36,175.33,112.3825]
[1754667150850,3.3,175.34,175.33,106.5]
[1754667151450,2.85623749,175.35,175.33,106.68]
[1754667151451,6.15623749,175.35,175.33,106.68]
[1754667151647,3.3,175.34,175.33,106.5]
[1754667152854,3.3,175.33,175.28,383.18]
[1754667153145,3.3,175.31,175.28,106.42]
[1754667153451,3.3,175.3,175.28,106.42]
[1754667153844,3.3,175.29,175.28,106.42]
[1754667154046,7.29648408,175.29,175.28,106.42]
[1754667154246,7.29651155,175.29,175.28,106.42]
[1754667154950,3.99651155,175.29,175.28,112.3043]
[1754667155652,7.29651155,175.29,175.28,112.1243]
[1754667155856,3.99651155,175.29,175.28,112.3043]
[1754667156348,3.99651155,175.29,175.28,112.1243]
[1754667157062,7.20651155,175.29,175.28,112.1243]
[1754667158048,3.99651155,175.29,175.28,112.3143]
[1754667158666,7.20651155,175.29,175.28,112.1243]
[1754667158847,7.20651155,175.29,175.28,106.42]
[1754667159248,10.05390445,175.29,175.28,106.42]
[1754667159449,7.20651155,175.29,175.28,106.42]
[1754667160153,3.21,175.28,175.18,6.66391204]
[1754667160356,3.21,175.25,175.19,106.38]
[1754667160657,3.98502564,175.24,175.2,6.85391204]
[1754667160850,3.98502564,175.23,175.22,5.7063]
[1754667161046,7.19502564,175.23,175.22,106.38]
[1754667162053,3.98502564,175.23,175.19,106.38]
[1754667162256,3.98502564,175.22,175.21,0.19]
[1754667162557,3.98502564,175.23,175.22,5.7063]
[1754667162758,1.51876213,175.23,175.22,119.04021204]
[1754667163058,3.21,175.28,175.22,113.33391204]
[1754667163252,3.21,175.28,175.23,0.19]
[1754667163449,3.21,175.27,175.24,6.66391204]
[1754667163654,3.21,175.26,175.25,112.1651]
[1754667163855,3.21,175.27,175.25,106.65]
[1754667164152,3.21,175.29,175.28,5.7043]
[1754667164353,3.21,175.29,175.28,106.44]
[1754667164551,3.21,175.29,175.16,246.4161]
[1754667164751,3.21,175.29,175.21,6.66391204]
[1754667164957,2.8412551,175.31,175.22,106.44]
[1754667165156,3.21,175.3,175.22,106.44]
[1754667165653,3.21,175.3,175.22,341.63]
[1754667165861,3.21,175.3,175.23,6.85391204]
[1754667166158,3.21,175.3,175.24,0.19]
[1754667166354,3.21,175.3,175.25,6.66391204]
[1754667166555,3.21,175.3,175.28,5.7043]
[1754667166758,3.21,175.3,175.28,0.19]
[1754667167249,3.21,175.32,175.27,6.85391204]
[1754667167859,3.21,175.34,175.29,6.66391204]
[1754667168056,3.21,175.34,175.29,113.33391204]
[1754667168353,3.21,175.35,175.31,12.55711204]
[1754667168559,3.21,175.33,175.31,12.55711204]
[1754667168751,3.21,175.33,175.32,5.703]
[1754667169159,3.21,175.35,175.32,0.19]
[1754667169352,7.52378903,175.37,175.32,0.19]
[1754667169556,3.21,175.34,175.32,0.19]
[1754667169854,4.68253393,175.38,175.31,6.66391204]
[1754667170059,3.21,175.33,175.31,6.66391204]
[1754667170749,3.21,175.33,175.32,5.703]
[1754667171154,8.912,175.36,175.31,12.36721204]
[1754667171354,2.84320193,175.35,175.31,5.7033]
[1754667171549,3.21,175.34,175.31,5.7033]
[1754667171754,3.21,175.34,175.3,6.66391204]
[1754667172450,3.21,175.34,175.3,12.36751204]
[1754667172655,3.21,175.34,175.31,0.19]
[1754667172856,2.84320193,175.36,175.31,0.19]
[1754667173057,3.21,175.33,175.31,0.19]
[1754667173357,3.21,175.33,175.3,6.66391204]
[1754667173559,3.21,175.33,175.3,6.85391204]
[1754667173762,3.21,175.32,175.3,6.85391204]
[1754667174155,3.21,175.36,175.31,0.19]
[1754667174356,6.05320193,175.38,175.32,6.85391204]
[1754667174557,6.05320193,175.38,175.34,6.66391204]
[1754667174860,3.21,175.38,175.36,6.66391204]
[1754667175056,3.21,175.38,175.37,106.4]
[1754667175253,4.01073604,175.38,175.37,112.2914]
[1754667175760,7.22073604,175.38,175.37,106.4]
[1754667176365,10.06393797,175.38,175.37,106.4]
[1754667176760,7.22073604,175.38,175.37,106.4]
[1754667177064,4.01073604,175.38,175.37,112.1014]
[1754667177662,4.01073604,175.38,175.37,112.2914]
[1754667179162,7.22073604,175.38,175.37,112.1014]
[1754667182163,4.01073604,175.38,175.37,112.2914]
[1754667182562,4.01073604,175.38,175.37,112.1014]
[1754667182762,7.22073604,175.38,175.37,112.1014]
[1754667183664,7.22073604,175.38,175.37,106.4]
[1754667184168,7.22073604,175.38,175.37,103.54850575]
[1754667185359,3.21,175.37,175.35,106.36]
[1754667185563,3.21,175.35,175.3,6.66391204]
[1754667185872,3.21,175.33,175.31,106.36]
[1754667186065,2.85116032,175.35,175.31,106.36]
[1754667186066,7.25073604,175.32,175.31,106.36]
[1754667186269,7.25073604,175.32,175.31,112.0634]
[1754667186464,4.01073604,175.32,175.31,112.2434]
[1754667187168,4.01073604,175.32,175.31,112.0634]
[1754667187364,4.01073604,175.32,175.19,75.36930527]
[1754667187365,3.24,175.31,175.24,6.84391204]
[1754667187666,8.69326997,175.32,175.29,0.18]
[1754667187667,4.01073604,175.3,175.29,0.18]
[1754667187965,4.01073604,175.3,175.29,106.82]
[1754667187966,7.25073604,175.3,175.29,106.82]
[1754667188472,4.01073604,175.3,175.29,112.704]
[1754667188868,4.01073604,175.3,175.29,12.36791204]
[1754667189074,4.01073604,175.3,175.29,106.88]
[1754667189567,7.25073604,175.3,175.29,106.88]
[1754667190774,10.10464472,175.3,175.29,106.88]
[1754667191272,7.25073604,175.3,175.29,106.88]
[1754667192662,10.1099691,175.3,175.29,106.88]
[1754667192867,7.25073604,175.3,175.29,106.88]
[1754667194074,10.1099691,175.3,175.29,106.88]
[1754667194575,7.25073604,175.3,175.29,106.88]
[1754667195174,7.26796573,175.3,175.29,106.88]
[1754667197175,4.02796573,175.3,175.28,5.7043]
[1754667197370,7.26796573,175.29,175.28,5.7043]
[1754667198377,7.92253393,175.35,175.28,6.84391204]
[1754667198576,3.24,175.34,175.31,0.18]
[1754667198878,6.09390996,175.35,175.34,5.7024]
[1754667199170,2.85390996,175.35,175.32,106.76]
[1754667199382,3.24,175.33,175.32,106.76]
[1754667199772,3.24,175.33,175.29,106.82]
[1754667199972,3.24,175.32,175.29,106.82]
[1754667200179,6.09390996,175.32,175.29,106.82]
[1754667200477,3.24,175.31,175.26,106.82]
[1754667200674,6.09390996,175.31,175.26,112.5248]
[1754667200870,3.24,175.3,175.26,106.82]
[1754667201577,3.24,175.3,175.27,5.7045]
[1754667202270,2.85390996,175.31,175.28,5.7043]
[1754667202471,7.57200319,175.32,175.28,5.7043]
[1754667202666,3.24,175.31,175.28,5.7043]
[1754667203065,3.24,175.29,175.26,106.82]
[1754667203274,7.95809323,175.3,175.26,106.82]
[1754667203477,6.09390996,175.29,175.26,106.82]
[1754667203676,3.24,175.27,175.22,5.7061]
[1754667203978,3.24,175.26,175.23,106.84]
[1754667204178,3.24,175.26,175.2,106.88]
[1754667204179,3.24,175.24,175.2,106.88]
[1754667204674,3.24,175.25,175.21,5.7066]
[1754667204875,6.09390996,175.25,175.2,106.88]
[1754667205069,3.24,175.23,175.2,107.06]
[1754667205378,3.24,175.22,175.21,5.7066]
[1754667205578,2.85390996,175.26,175.21,0.18]
[1754667205779,3.24,175.24,175.21,0.18]
[1754667205981,6.09390996,175.26,175.22,0.18]
[1754667206172,3.24,175.25,175.22,0.18]
[1754667206372,2.85041445,175.27,175.23,5.7058]
[1754667206573,3.24,175.24,175.23,5.7058]
[1754667207071,4.71285993,175.27,175.22,5.7062]
[1754667207268,3.24,175.26,175.22,5.7062]
[1754667207478,3.24,175.26,175.21,235.18]
[1754667207777,3.24,175.24,175.22,0.18]
[1754667207976,2.84986273,175.27,175.24,0.18]
[1754667208174,3.24,175.28,175.26,5.7048]
[1754667208576,2.84986273,175.29,175.25,107.06]
[1754667208776,3.24,175.29,175.27,0.18]
[1754667209177,7.95285993,175.31,175.29,5.704]
[1754667209479,3.24,175.3,175.25,113.72391204]
[1754667209670,2.85226258,175.3,175.25,113.72391204]
[1754667209875,3.24,175.28,175.25,113.72391204]
[1754667210282,3.24,175.28,175.27,5.7044]
[1754667210580,3.24,175.28,175.25,106.88]
[1754667210781,3.24,175.27,175.25,106.88]
[1754667211179,6.08984185,175.27,175.25,106.88]
[1754667211384,6.08984185,175.27,175.2,0.18]
[1754667211385,4.71285993,175.28,175.22,106.94]
[1754667211582,3.24,175.26,175.22,106.94]
[1754667211876,3.24,175.26,175.22,112.6461]
[1754667212081,6.08984185,175.26,175.22,112.6461]
[1754667212279,2.84984185,175.26,175.22,112.6461]
[1754667212475,3.24,175.25,175.22,107.12]
[1754667212787,3.24,175.27,175.22,107.12]
[1754667212973,7.56270178,175.27,175.22,106.94]
[1754667213179,3.24,175.27,175.23,0.18]
[1754667213378,3.24,175.27,175.24,0.18]
[1754667213577,3.24,175.27,175.25,5.7053]
[1754667213782,3.24,175.28,175.25,5.7053]
[1754667214374,3.24,175.28,175.24,5.8855]
[1754667214991,2.84984185,175.28,175.23,6.66391204]
[1754667215186,3.24,175.27,175.23,6.66391204]
[1754667215383,3.24,175.27,175.22,106.94]
[1754667215588,3.24,175.27,175.22,107.12]
[1754667215787,6.08984185,175.27,175.22,106.94]
[1754667216089,3.24,175.26,175.22,107.12]
[1754667216282,3.24,175.26,175.22,112.6461]
[1754667216478,2.84984185,175.26,175.22,106.94]
[1754667216687,3.08,175.24,175.22,107.12]
[1754667217498,3.08,175.24,175.22,106.94]
[1754667217990,3.08,175.24,175.23,5.706]
[1754667218387,2.84984185,175.27,175.23,0.18]
[1754667218587,3.08,175.28,175.24,5.8854]
[1754667218892,3.08,175.28,175.24,5.7054]
[1754667219089,3.08,175.28,175.22,341.94]
[1754667219297,3.08,175.27,175.22,341.94]
[1754667219688,4.71285993,175.28,175.23,17.25]
[1754667219889,3.08,175.26,175.23,17.25]
[1754667220090,3.08,175.28,175.23,17.07]
[1754667220285,3.08,175.27,175.23,22.7759]
[1754667220488,2.84984185,175.27,175.23,22.7759]
[1754667220686,3.08,175.24,175.23,17.07]
[1754667220881,3.08,175.24,175.23,4.638]
[1754667221190,5.7065,175.22,175.2,15.16]
[1754667221386,4.70488889,175.23,175.2,18.25]
[1754667221692,4.70488889,175.23,175.2,15.16]
[1754667221891,5.7063,175.22,175.2,18.25]
[1754667222292,2.84984185,175.22,175.2,18.25]
[1754667222491,4.70488889,175.23,175.2,18.25]
[1754667222796,2.84984185,175.25,175.2,18.25]
[1754667222797,4.70488889,175.24,175.21,3.09]
[1754667222993,4.70488889,175.24,175.22,3.09]
[1754667223190,4.70488889,175.24,175.2,15.16]
[1754667223395,4.70488889,175.23,175.2,15.16]
[1754667223596,5.7066,175.21,175.2,39.36]
[1754667224295,12.37051204,175.21,175.2,39.36]
[1754667224489,19.92054833,175.21,175.2,39.36]
[1754667225497,5.7089,175.14,175.09,241.66391204]
[1754667225792,11.36866362,175.18,175.11,3.09]
[1754667225986,6.3538219,175.21,175.11,3.09]
[1754667225987,5.7096,175.12,175.11,3.09]
[1754667226191,2.8451474,175.15,175.11,3.09]
[1754667226490,5.7097,175.12,175.1,3.09]
[1754667226697,2.8451474,175.14,175.1,3.09]
[1754667226888,7.54989898,175.15,175.08,3.09]
[1754667227290,2.8451474,175.15,175.08,3.09]
[1754667227789,7.54691567,175.17,175.08,3.09]
[1754667228098,14.21082771,175.16,175.08,3.09]
[1754667228297,5.7094,175.13,175.08,3.09]
[1754667228493,2.8451474,175.15,175.08,3.09]
[1754667228696,2.8451474,175.15,175.11,5.7098]
[1754667228897,11.36568031,175.16,175.13,3.09]
[1754667229096,11.36568031,175.16,175.07,113.56391204]
[1754667229097,2.84132847,175.15,175.08,3.09]
[1754667229296,6.66391204,175.12,175.04,5.7121]
[1754667229494,6.66391204,175.12,175.09,6.76]
[1754667229693,11.36568031,175.12,175.09,6.76]
[1754667229895,5.7102,175.1,175.09,6.76]
[1754667231296,12.37411204,175.1,175.09,6.76]
[1754667231593,15.21544051,175.1,175.09,6.76]
[1754667231794,2.84132847,175.1,175.09,9.85]
[1754667231999,2.84132847,175.14,175.1,3.09]
[1754667232193,2.84132847,175.15,175.1,3.09]
[1754667232393,13.25129674,175.17,175.1,3.09]
[1754667232597,2.84132847,175.16,175.1,3.09]
[1754667232801,2.84132847,175.18,175.1,3.09]
[1754667233098,2.84132847,175.18,175.17,3.09]
[1754667233301,2.84132847,175.18,175.11,6.66391204]
[1754667233500,2.84132847,175.18,175.15,5.7085]
[1754667233703,2.84132847,175.18,175.11,6.66391204]
[1754667234000,2.84132847,175.18,175.15,5.7085]
[1754667234307,2.84132847,175.18,175.11,6.66391204]
[1754667234599,2.84132847,175.18,175.15,5.7085]
[1754667234795,2.84132847,175.18,175.13,6.66391204]
[1754667235113,3.99565512,175.17,175.11,6.66391204]
[1754667235296,3.99565512,175.16,175.12,3.09]
[1754667235498,3.99565512,175.15,175.12,3.09]
[1754667235797,3.99565512,175.14,175.13,8.7992]
[1754667237806,3.99565512,175.14,175.13,15.46311204]
[1754667239305,3.99565512,175.14,175.12,5.7095]
[1754667239504,3.99565512,175.13,175.09,13.42391204]
[1754667239710,7.07565512,175.12,175.1,3.09]
[1754667240010,3.99565512,175.11,175.1,3.09]
[1754667241004,1.52365512,175.13,175.12,5.7096]
[1754667241197,1.52365512,175.13,175.12,8.7996]
[1754667241607,3.08,175.19,175.12,3.09]
[1754667241802,3.08,175.19,175.11,6.66391204]
[1754667242003,5.91162921,175.19,175.12,3.09]
[1754667242203,11.34465529,175.18,175.12,3.09]
[1754667242403,3.08,175.16,175.12,3.09]
[1754667242599,5.7085,175.16,175.12,3.09]
[1754667242911,8.7885,175.16,175.13,3.09]
[1754667243098,8.7885,175.16,175.14,3.09]
[1754667243303,3.08,175.15,175.14,3.09]
[1754667243507,3.08,175.15,175.11,3.09]
[1754667243803,2.83162921,175.17,175.09,13.42391204]
[1754667243999,3.08,175.17,175.13,3.09]
[1754667244201,11.61902921,175.19,175.13,8.7992]
[1754667244506,2.83162921,175.19,175.14,3.09]
[1754667244706,2.83162921,175.21,175.18,5.7073]
[1754667245008,2.83162921,175.22,175.21,3.09]
[1754667245304,2.83162921,175.22,175.2,5.7069]
[1754667245504,2.83162921,175.23,175.19,6.66391204]
[1754667245705,3.08,175.24,175.19,6.66391204]
[1754667245910,3.08,175.23,175.19,6.66391204]
[1754667246110,3.3,175.22,175.19,6.66391204]
[1754667246412,3.3,175.24,175.2,5.7067]
[1754667246705,4.68074325,175.26,175.2,5.7067]
[1754667247006,3.3,175.24,175.19,12.37101204]
[1754667247307,3.3,175.24,175.19,3.09]
[1754667247608,3.3,175.23,175.19,3.09]
[1754667247909,3.3,175.21,175.19,3.09]
[1754667248299,3.3,175.2,175.19,3.09]
[1754667248498,5.7068,175.21,175.18,3.09]
[1754667248700,3.3,175.2,175.18,3.09]
[1754667248907,6.1355749,175.21,175.19,3.09]
[1754667249108,3.3,175.2,175.18,3.09]
[1754667249308,3.3,175.2,175.19,3.09]
[1754667249603,6.1355749,175.22,175.17,113.76391204]
[1754667249811,6.1355749,175.22,175.17,110.19]
[1754667250108,3.3,175.21,175.17,107.1]
[1754667250306,3.3,175.22,175.19,3.09]
[1754667250507,4.68074325,175.23,175.17,107.1]
[1754667250707,3.3,175.2,175.18,3.09]
[1754667250906,3.3,175.2,175.19,3.09]
[1754667251502,2.8355749,175.22,175.19,8.7973]
[1754667251708,3.3,175.22,175.18,3.09]
[1754667251908,7.98074325,175.24,175.18,3.09]
[1754667252211,4.68074325,175.23,175.2,5.7069]
[1754667252410,4.68074325,175.23,175.22,3.09]
[1754667252914,7.51631815,175.25,175.21,5.7066]
[1754667253113,3.9561319,175.24,175.22,3.09]
[1754667253313,3.9561319,175.23,175.21,5.7066]
[1754667253514,3.9561319,175.22,175.21,5.7066]
[1754667253710,2.8355749,175.24,175.21,6.66391204]
[1754667253908,7.51631815,175.29,175.24,3.09]